Cogmind - Beta 15 *** ADVENTURER MODE // 2025.07.31 @ 11:15:50 Player: dary Result: Destroyed by Y-54 Guardian via exploding Fusion Modulator Performance ------------- Evolutions (4) 2000 Regions Visited (7) 1400 Robots Destroyed (23) 115 Value Destroyed (711) 711 Prototype IDs (0) 0 Alien Tech Used (0) 0 Bonus (200) 200 TOTAL SCORE: 4426 Bonus ------- Pacifist 200 Cogmind --------- Core Integrity 0/850 Matter 212/300 Energy 100/100 System Corruption 1% Temperature Cool (12) Movement Walking (120) Location -6/Factory Parts ------- > --- POWER (3) -------- (None) > --- PROPULSION (4) --- Carbon-fiber Leg > --- UTILITY (4) ------ Advanced Terrain Scan Processor Launcher Guidance Computer > --- WEAPON (4) ------- (None) > --- INVENTORY (5) ---- (None) Peak State ------------ > --- POWER ------------ Improved Ion Engine Improved Ion Engine Improved Ion Engine > --- PROPULSION ------- Carbon-fiber Leg Improved Titanium Leg Improved Titanium Leg Improved Titanium Leg > --- UTILITY ---------- Advanced Terrain Scan Processor Launcher Guidance Computer Shock Absorption System Improved System Shield > --- WEAPON ----------- Pulse Rifle Minigun Mini Grenade Launcher > --- INVENTORY -------- Light Deuterium Engine [Rating: 46] Favorites ----------- Power Improved Ion Engine Engine Improved Ion Engine Propulsion Improved Titanium Leg Treads Improved Treads Leg Improved Titanium Leg Wheel Compact Wheel Hover Unit Hover Unit Flight Unit Nuclear Pulse Thruster Utility Improved Light Armor Plating Device Shock Absorption System Storage Small Storage Unit Processor Launcher Guidance Computer Hackware Improved System Shield Protection Improved Light Armor Plating Weapon Mini Grenade Launcher Energy Gun Pulse Rifle Ballistic Gun Assault Rifle Ballistic Cannon Assault Cannon Launcher Mini Grenade Launcher Special Weapon Remote Datajack Build | -11 -10 -10 -9 -9 -8 -7 -6 ------- Run | Yrd Mat Min Mat Min Mat Fac Fac Slots Evolved 8 | . . . 2 . 2 2 2 Power 2 | . . . 1 . . 1 . Propulsion 2 | . . . . . . 1 1 Utility 2 | . . . 1 . 1 . . Weapon 2 | . . . . . 1 . 1 Parts Attached 47 | 6 . 7 2 2 14 4 12 Power 7 | 1 . 1 2 . 1 1 1 Engine 7 | 1 . 1 2 . 1 1 1 Core . | . . . . . . . . Reactor . | . . . . . . . . Propulsion 18 | 2 . 2 . 2 7 1 4 Treads 3 | . . . . 1 2 . . Leg 8 | 2 . . . . 2 1 3 Wheel 4 | . . 2 . . 2 . . Hover 1 | . . . . . 1 . . Flight 2 | . . . . 1 . . 1 Utility 11 | 1 . 2 . . 5 1 2 Device 2 | . . . . . 1 . 1 Storage 2 | 1 . . . . 1 . . Processor 3 | . . . . . 2 1 . Hackware 1 | . . . . . . . 1 Protection 3 | . . 2 . . 1 . . Artifact . | . . . . . . . . Weapon 11 | 2 . 2 . . 1 1 5 Energy Gun 5 | . . 1 . . . 1 3 Energy Cannon . | . . . . . . . . Ballistic Gun 3 | 2 . . . . . . 1 Ballistic Cannon 1 | . . . . . 1 . . Launcher 1 | . . 1 . . . . . Special Weapon 1 | . . . . . . . 1 Impact Weapon . | . . . . . . . . Slashing Weapon . | . . . . . . . . Piercing Weapon . | . . . . . . . . Special Melee Weapon . | . . . . . . . . Unidentified Prototypes . | . . . . . . . . Parts Lost 28 | . . 6 1 . . . 21 Power 6 | . . 2 . . . . 4 Propulsion 9 | . . 2 1 . . . 6 Utility 4 | . . . . . . . 4 Weapon 9 | . . 2 . . . . 7 Highest Loss Streak 18 | . . 6 1 . . . 18 To Critical Strikes . | . . . . . . . . Average Backups 4 | 2 3 1 2 4 5 4 3 Power 1 | . 1 . . 1 2 1 . Propulsion . | 2 2 . . . . 1 . Utility 2 | . . . 1 2 2 . . Weapon . | . . . . . . 1 . Tool/Special . | . . . . . . . . Unused Backups 5 | 2 . . . . 3 . . Power 1 | . . . . . 1 . . Propulsion 2 | 2 . . . . . . . Utility 2 | . . . . . 2 . . Weapon . | . . . . . . . . Tool/Special . | . . . . . . . . Average Slot Usage (%) 89 | . 85 68 80 88 96 99 76 Engine 17 | . 14 4 5 22 18 23 14 Treads 5 | . . . . 9 6 . . Leg 6 | . 28 8 . . 3 22 18 Wheel 2 | . . 19 20 1 1 . . Hover 2 | . . . . . 5 . . Storage 7 | . 14 14 11 11 7 . . Processor 6 | . . . . . 9 14 13 Protection 16 | . . 7 22 22 18 15 6 Energy Gun 8 | . . 1 11 11 9 7 7 Ballistic Gun 1 | . 28 8 . . . . 1 Ballistic Cannon 4 | . . . . . 8 7 2 Launcher 8 | . . 7 11 11 9 7 4 Peak Build Rating 46 | 6 6 11 20 24 37 40 46 Average Rating 25 | 4 6 6 14 21 29 39 36 On Entrance 17 | . 6 6 11 20 22 32 40 Naked Turns . | . . . . . . . . Heaviest Build 110 | 12 12 14 31 31 110 35 37 Greatest Support 75 | 20 20 26 26 23 35 55 75 Greatest Overweight (x) 18 | . . . 1 1 18 . . Average Overweight (x) 1 | . . . . 1 4 . . Largest Inventory Capacity 25 | 8 8 8 8 8 25 5 5 Average Capacity 11 | 7 8 8 8 8 19 5 5 Most Carried 9 | 5 3 3 4 6 9 5 5 Average Carried 4 | 3 3 1 1 4 5 4 3 Final Capacity 8 | 8 8 8 8 8 5 5 5 Final Carried 5 | 3 3 2 3 5 5 5 . Class Distribution -------------------- 49% | Scavenger-Bomber 34% | Scavenger-Mutant 14% | Mutant Dominant Class ---------------- Mutant | -10/Materials Mutant | -10/Mines Mutant | -9/Materials Scavenger-Mutant | -9/Mines Scavenger-Bomber | -8/Materials Scavenger-Bomber | -7/Factory Scavenger-Bomber | -6/Factory Resources | -11 -10 -10 -9 -9 -8 -7 -6 ----------- Run | Yrd Mat Min Mat Min Mat Fac Fac Matter Collected 726 | 237 . 77 50 27 140 . 195 Remotely . | . . . . . . . . Salvage Created 725 | . . 19 . 32 274 . 400 Parts 34 | . . . . 6 16 . 12 Haulers Intercepted . | . . . . . . . . Recyclers Shooed . | . . . . . . . . Parts Field Recycled . | . . . . . . . . Retrieved Matter . | . . . . . . . . Parts Self-Destructed . | . . . . . . . . Prevented . | . . . . . . . . Kills | -11 -10 -10 -9 -9 -8 -7 -6 ------- Run | Yrd Mat Min Mat Min Mat Fac Fac Combat Hostiles Destroyed 18 | . . 1 . 3 4 . 10 Melee 1 | . . . . . . . 1 Guns 8 | . . 1 . . . . 7 Cannons 4 | . . . . . 3 . 1 AOE 5 | . . . . 3 1 . 1 Classes Destroyed 11 | . . 1 . 2 4 . 4 Worker 1 | . . . . . 1 . . Builder 1 | . . . . . . . 1 Tunneler 1 | . . . . 1 . . . Recycler 1 | . . . . . 1 . . Mechanic 1 | . . . . . . . 1 Watcher 1 | . . . . . . . 1 Swarmer 8 | . . . . 3 . . 5 Grunt 4 | . . . . . . . 4 Sentry 4 | . . . . . 3 . 1 Hunter 1 | . . . . . 1 . . Assembled 1 | . . 1 . . . . . Best Kill Streak 9 | . . 1 . 3 2 . 9 Combat Bots Only 6 | . . 1 . 3 1 . 6 Max Kills in Single Turn 3 | . . 1 . 3 2 . 3 Gunslinging . | . . . . . . . . Exploded 3 | . . . . 3 1 . 1 Melee 1 | . . . . . . . 1 Uniques/NPCs Destroyed . | . . . . . . . . Combat | -11 -10 -10 -9 -9 -8 -7 -6 -------- Run | Yrd Mat Min Mat Min Mat Fac Fac Hostile Shots Fired 495 | . . 25 1 5 9 . 455 Missed 171 | . . 2 1 3 1 . 164 Hits 324 | . . 23 . 2 8 . 291 Melee 2 | . . 2 . . . . . Projectile 322 | . . 21 . 2 8 . 291 AOE 24 | . . 23 . . . . 1 Critical Strikes 5 | . . . . . 2 . 3 Damage Taken 3623 | . . 737 30 48 223 . 2585 Core 1239 | . . 203 . . 100 . 936 Absorbed by Shields . | . . . . . . . . Redirected to Shielding 95 | . . . . . . . 95 Ignored by Resistances 1050 | . . 202 8 14 59 . 767 Core Remaining (%) 79 | 100 . 18 . 100 81 100 . Volleys Fired 51 | . . 4 1 2 7 . 37 Largest 3 | . . 2 2 2 3 . 3 Hottest 150 | . . 40 93 93 130 . 150 Shots Fired 84 | . . 8 2 4 15 . 55 Gun 58 | . . 8 1 2 7 . 40 Cannon 19 | . . . . . 7 . 12 Launcher 6 | . . . 1 2 1 . 2 Special 1 | . . . . . . . 1 Kinetic 46 | . . 8 . . 7 . 31 Thermal 30 | . . . 1 2 7 . 20 Explosive 6 | . . . 1 2 1 . 2 Electromagnetic 1 | . . . . . . . 1 Robot Hit Streak 23 | . . 3 3 5 19 . 23 Robot Miss Streak 2 | . . 1 . . . . 2 Penetration Max . | . . . . . . . . Secondary Targets . | . . . . . . . . Shots Hit Robots 64 | . . 5 2 2 14 . 41 Core Hits 42 | . . 2 . 5 8 . 27 Critical Kills . | . . . . . . . . Critical Parts Destroyed 1 | . . . . . . . 1 Critical Strikes 3 | . . . . . 1 . 2 Burn 1 | . . . . . . . 1 Destroy 1 | . . . . . . . 1 Blast 1 | . . . . . 1 . . Melee Attacks . | . . . . . . . . Impact . | . . . . . . . . Slashing . | . . . . . . . . Piercing . | . . . . . . . . Sneak Attacks . | . . . . . . . . Combat Hostiles . | . . . . . . . . Follow-up Attacks . | . . . . . . . . Damage Inflicted 1871 | . . 62 65 189 300 . 1255 Guns 841 | . . 62 16 16 120 . 627 Cannons 333 | . . . . . 155 . 178 Explosions 662 | . . . 49 173 25 . 415 Melee . | . . . . . . . . Ramming 35 | . . . . . . . 35 Kinetic 744 | . . 62 . . 155 . 527 Thermal 415 | . . . 16 16 120 . 263 Explosive 662 | . . . 49 173 25 . 415 Electromagnetic 15 | . . . . . . . 15 Impact . | . . . . . . . . Slashing . | . . . . . . . . Piercing . | . . . . . . . . Highest Corruption 1 | . . . . . . . 1 Average Corruption 1 | . . . . . . . 1 Corruption Purged . | . . . . . . . . Corruption Blocked . | . . . . . . . . Overload Shots . | . . . . . . . . Overflow Damage 19 | . . . 10 . . . 9 Projectiles . | . . . . . . . . Explosions 19 | . . . 10 . . . 9 Melee . | . . . . . . . . Knockbacks 5 | . . . . . . . 5 Impact . | . . . . . . . . Kinetic 5 | . . . . . . . 5 Secondary . | . . . . . . . . Self-Inflicted Damage 130 | . . . . 39 79 . 12 Shots 2 | . . . . 1 1 . . Rammed 5 | . . . . . . . 5 Targets Rammed 15 | . . . . . . . 15 Kicked 10 | . . . . . . . 10 Crushed . | . . . . . . . . Highest Temperature 575 | . . . 21 60 207 . 575 Average Temperature 150 | . . . 14 32 68 . 210 Received Heat Transfer 996 | . . . . . 72 . 924 Effects 19 | . . . . . . . 19 Shutdowns 7 | . . . . . . . 7 Short Circuit 3 | . . . . . . . 3 Damage (minor) 3 | . . . . . . . 3 Damage (major) 5 | . . . . . . . 5 Damage (core) 1 | . . . . . . . 1 Siege Activations . | . . . . . . . . Martial Activations . | . . . . . . . . Shielding Activations . | . . . . . . . . Robots Disrupted . | . . . . . . . . Combat Hostiles . | . . . . . . . . Robots Corrupted . | . . . . . . . . Combat Hostiles . | . . . . . . . . Parts Fried . | . . . . . . . . Impact Corruptions . | . . . . . . . . Robots Melted . | . . . . . . . . Combat Hostiles . | . . . . . . . . Parts Melted 2 | . . . . . 1 . 1 Heat Transferred 999 | . . . 37 37 259 . 666 Parts Sabotaged . | . . . . . . . . Parts Stolen . | . . . . . . . . Parts Stripped . | . . . . . . . . Power Chain Reactions . | . . . . . . . . Alert | -11 -10 -10 -9 -9 -8 -7 -6 ------- Run | Yrd Mat Min Mat Min Mat Fac Fac Maximum Alert Level . | . . . . . . . . Low Security (%) 100 | 100 100 100 100 100 100 100 100 Level 1 . | . . . . . . . . Level 2 . | . . . . . . . . Level 3 . | . . . . . . . . Level 4 . | . . . . . . . . Level 5 . | . . . . . . . . High Security . | . . . . . . . . Max Security . | . . . . . . . . Peak Influence 130 | . . . 18 77 83 24 130 Initial 24 | . . . . . . 24 . Average 8 | . . . 2 8 4 4 32 Influence Increases 569 | . . . 18 98 196 . 257 Destroy 0b10 Robot/C 340 | . . . . 60 80 . 200 Destroy 0b10 Robot/NC 45 | . . . . 10 20 . 15 Destroy Leader 84 | . . . . 10 42 . 32 Allied During Kill 1 | . . . . . 1 . . Disable Machine 27 | . . . 9 . 18 . . Destroy Structure 72 | . . . 9 18 35 . 10 Influence Decreases 569 | . . . 18 98 133 63 257 Entered New Map 39 | . . . . . . 39 . Time Decay 345 | . . . 10 98 113 24 100 Lost Part 165 | . . . 8 . . . 157 Lost Ally 20 | . . . . . 20 . . Squads Dispatched 5 | . . . 1 . . . 4 Investigation . | . . . . . . . . Extermination 1 | . . . . . . . 1 Reinforcement 2 | . . . 1 . . . 1 Assault . | . . . . . . . . Garrison 2 | . . . . . . . 2 Intercept . | . . . . . . . . Searches Triggered . | . . . . . . . . Construction Impeded 1 | . . . . . . . 1 Haulers Reinforced . | . . . . . . . . Active Scanning Responses . | . . . . . . . . Cargo Convoy Interrupts . | . . . . . . . . Stealth | -11 -10 -10 -9 -9 -8 -7 -6 --------- Run | Yrd Mat Min Mat Min Mat Fac Fac Distress Signals . | . . . . . . . . Communications Jammed . | . . . . . . . . Distress Signals . | . . . . . . . . Times Spotted 42 | . . 13 5 3 8 . 13 Peak Tracking Total 9 | . . 9 3 3 2 . 7 Tactical Retreats . | . . . . . . . . Traps | -11 -10 -10 -9 -9 -8 -7 -6 ------- Run | Yrd Mat Min Mat Min Mat Fac Fac Traps Triggered 3 | . . . . . 2 . 1 Indirectly . | . . . . . . . . Trap Hack Attempts . | . . . . . . . . Triggered . | . . . . . . . . Disarmed . | . . . . . . . . Reprogrammed . | . . . . . . . . Reused . | . . . . . . . . Traps Extracted . | . . . . . . . . Installed . | . . . . . . . . Triggered . | . . . . . . . . Machines | -11 -10 -10 -9 -9 -8 -7 -6 ---------- Run | Yrd Mat Min Mat Min Mat Fac Fac Machines Disabled 3 | . . . 1 . 2 . . Max in Single Turn 2 | . . . 1 . 2 . . Machines Repaired . | . . . . . . . . Machines Dismantled . | . . . . . . . . Machines Sabotaged . | . . . . . . . . Overloaded Fab Kills . | . . . . . . . . Hacking | -11 -10 -10 -9 -9 -8 -7 -6 --------- Run | Yrd Mat Min Mat Min Mat Fac Fac Machines Accessed 4 | . 1 1 . . 2 . . Terminals 2 | . 1 . . . 1 . . Fabricators . | . . . . . . . . Repair Stations . | . . . . . . . . Recycling Units 1 | . . . . . 1 . . Scanalyzers . | . . . . . . . . Garrison Access . | . . . . . . . . Total Hacks 6 | . 2 1 . . 3 . . Successful 6 | . 2 1 . . 3 . . Failed . | . . . . . . . . Catastrophic . | . . . . . . . . Database Lockouts . | . . . . . . . . Manual . | . . . . . . . . Terminals 4 | . 2 . . . 2 . . Fabricators . | . . . . . . . . Repair Stations . | . . . . . . . . Recycling Units 1 | . . . . . 1 . . Scanalyzers . | . . . . . . . . Garrison Access . | . . . . . . . . Terminal Hacks 5 | . 2 1 . . 2 . . Record 2 | . 2 . . . . . . Open Door 1 | . . 1 . . . . . Alert Level 2 | . . . . . 2 . . Fabricator Hacks . | . . . . . . . . Repair Station Hacks . | . . . . . . . . Recycling Unit Hacks 1 | . . . . . 1 . . Recycle Component 1 | . . . . . 1 . . Scanalyzer . | . . . . . . . . Garrison Access Hacks . | . . . . . . . . Unauthorized Hacks . | . . . . . . . . Terminals . | . . . . . . . . Fabricators . | . . . . . . . . Repair Stations . | . . . . . . . . Recycling Units . | . . . . . . . . Scanalyzers . | . . . . . . . . Garrison Access . | . . . . . . . . Data Cores Recovered 1 | . . . . . 1 . . Used . | . . . . . . . . Hacking Detections 2 | . 1 . . . 1 . . Full Trace Events . | . . . . . . . . Feedback Events . | . . . . . . . . Feedback Blocked . | . . . . . . . . Robot Schematics Acquired . | . . . . . . . . Robots Built . | . . . . . . . . Authchips . | . . . . . . . . Time . | . . . . . . . . Total Robot Build Rating . | . . . . . . . . Part Schematics Acquired . | . . . . . . . . Parts Built . | . . . . . . . . Authchips . | . . . . . . . . Time . | . . . . . . . . Total Part Build Rating . | . . . . . . . . Parts Repaired . | . . . . . . . . Time . | . . . . . . . . Parts Recycled 1 | . . . . . 1 . . Recycled Matter . | . . . . . . . . Retrieved Matter . | . . . . . . . . Retrieved Components . | . . . . . . . . Parts Scanalyzed . | . . . . . . . . Part Schematics Acquired . | . . . . . . . . Parts Damaged . | . . . . . . . . Bothacking | -11 -10 -10 -9 -9 -8 -7 -6 ------------ Run | Yrd Mat Min Mat Min Mat Fac Fac Used RIF Installer . | . . . . . . . . Robots Hacked . | . . . . . . . . Non-combat . | . . . . . . . . Combat . | . . . . . . . . Robot Hacks Applied . | . . . . . . . . Relay Couplers Released . | . . . . . . . . Fabnet Peak Effective % . | . . . . . . . . Robots Rewired . | . . . . . . . . Allies Hacked . | . . . . . . . . Hacks Repelled . | . . . . . . . . Allies | -11 -10 -10 -9 -9 -8 -7 -6 -------- Run | Yrd Mat Min Mat Min Mat Fac Fac Total Allies 2 | . . . . 2 . . . Largest Group 2 | . . . . 2 2 . . Highest-Rated Group 39 | . . . . 39 39 . . Highest-Rated Ally 31 | . . . . 31 31 . . Total Orders . | . . . . . . . . Ally Attacks 16 | . . . . . 16 . . Total Damage 252 | . . . . . 252 . . Kills 2 | . . . . . 2 . . Allies Corrupted . | . . . . . . . . Allies Melted . | . . . . . . . . Intel | -11 -10 -10 -9 -9 -8 -7 -6 ------- Run | Yrd Mat Min Mat Min Mat Fac Fac Active Infowar (turns) 178 | . . . . . 146 32 . Optics 178 | . . . . . 146 32 . Robot Analysis Total . | . . . . . . . . Derelict Logs Recovered . | . . . . . . . . Drone Launches . | . . . . . . . . Drone Recoveries . | . . . . . . . . Exploration | -11 -10 -10 -9 -9 -8 -7 -6 ------------- Run | Yrd Mat Min Mat Min Mat Fac Fac Turns Passed 2773 | 157 42 130 100 730 1087 187 340 Spaces Moved 1340 | 130 36 110 97 354 301 143 169 Core 23 | 22 . . . . . . 1 Treads 323 | . . . . 248 75 . . Legs 595 | 108 36 18 . . 126 143 164 Wheels 348 | . . 92 97 106 53 . . Hover 47 | . . . . . 47 . . Flight 4 | . . . . . . . 4 Fastest Speed 40 | 50 120 80 90 115 125 126 40 Average Speed 187 | 108 120 94 93 202 339 126 126 Slowest Speed 1160 | 120 120 120 115 240 1160 126 130 Overloaded Moves . | . . . . . . . . Propulsion Burnouts . | . . . . . . . . Robots Hopped . | . . . . . . . . Potential Cave-ins 4 | . . 4 . . . . . Cave-ins Triggered . | . . . . . . . . Exploration Rate (%) 16 | 6 8 22 11 50 29 4 3 Regions Visited 7 Branch Regions 2 Pre-discovered Areas . | . . . . . . . . Known Exits Taken . | . . . . . . . . Unknown Exits Taken 7 | 1 1 1 1 1 1 1 . Scrap Searched 1 | . . . . 1 . . . Spaces Dug . | . . . . . . . . Terrain Destroyed 89 | . . . 10 20 50 . 9 Melee . | . . . . . . . . Projectile . | . . . . . . . . AOE 89 | . . . 10 20 50 . 9 Terrain Rammed . | . . . . . . . . Walls Destroyed . | . . . . . . . . Machines Disabled . | . . . . . . . . Actions | -11 -10 -10 -9 -9 -8 -7 -6 --------- Run | Yrd Mat Min Mat Min Mat Fac Fac Total 1534 | 147 35 127 104 365 357 150 249 Wait 2 | . . . . . . . 2 Move 1333 | 129 35 109 96 353 300 142 169 Hop . | . . . . . . . . Pick Up 50 | 10 . 5 4 4 18 2 7 Fast Attach 3 | 1 . . . . 1 1 . Attach 45 | 5 . 6 3 2 12 2 15 Detach 4 | . . . . . 1 . 3 Swap 6 | . . 2 . . 3 1 . Drop 22 | 2 . . . 2 15 2 1 Fire 51 | . . 4 1 2 7 . 37 Melee . | . . . . . . . . Ram 5 | . . . . . . . 5 Kick 10 | . . . . . . . 10 Crush . | . . . . . . . . Escape Stasis . | . . . . . . . . Rewire 3 | . . 1 . 2 . . . Trap . | . . . . . . . . Miscellaneous . | . . . . . . . . Route ------- -11/Scrapyard -10/Materials -10/Mines -9/Materials -9/Mines -8/Materials -7/Factory -6/Factory History --------- Turn | Location | Event 20 | -11/Scrapyard | Discovered new exit (range 15) 158 | -11/Scrapyard | Entered Materials 180 | -10/Materials | Discovered new exit (range 16) 200 | -10/Materials | Entered Mines 201 | -10/Mines | Assembled infested the area 218 | -10/Mines | Met 8R-AWN 233 | -10/Mines | Core integrity fell below 50% 247 | -10/Mines | Core integrity fell below 20% 275 | -10/Mines | Lost 6 parts (2p2n2w) 303 | -10/Mines | Discovered new exit (range 10) 308 | -10/Mines | Build established: Mutant 315 | -10/Mines | Met a Derelict who couldn't figure out how to use a Trap Extractor 330 | -10/Mines | Entered Materials 330 | -9/Materials | Evolved 2 slots: Power x1, Utility x1 378 | -9/Materials | Discovered new exit (range 15) 430 | -9/Materials | Entered Mines 444 | -9/Mines | Discovered new exit (range 8) 540 | -9/Mines | Found DCF Scrap (12 items) 705 | -9/Mines | Build established: Scavenger-Mutant 1160 | -9/Mines | Entered Materials 1160 | -8/Materials | Accompanied by 2 allies 1160 | -8/Materials | Evolved 2 slots: Utility x1, Weapon x1 1165 | -8/Materials | Led the pair of lost Derelicts to an unsafe place 1532 | -8/Materials | Build established: Scavenger-Bomber 2149 | -8/Materials | Discovered new exit (range 18) 2247 | -8/Materials | Entered Factory 2247 | -7/Factory | Evolved 2 slots: Power x1, Propulsion x1 2399 | -7/Factory | Discovered new exit (range 16) 2434 | -7/Factory | Entered another Factory area 2434 | -6/Factory | Evolved 2 slots: Propulsion x1, Weapon x1 2576 | -6/Factory | Garrison activated, responded to threat 2631 | -6/Factory | Lost 3 parts (2u1w) 2730 | -6/Factory | Core integrity fell below 50% 2754 | -6/Factory | Core integrity fell below 20% 2774 | -6/Factory | Destroyed by Y-54 Guardian via exploding Fusion Modulator Last Messages --------------- Y-54 Guardian heat damages Flak Gun, Broken Lgt. Treads, Imp. Heat Sink, Lgt. Treads. Y-54 Guardian heat spikes uncontrollably. Kicked Y-54 Guardian. Kicked Y-54 Guardian out of the way. Y-54 Guardian heat short circuits Gatling Laser. Kicked Y-54 Guardian. Broken Gatling Laser melted. Y-54 Guardian destroyed. Acquired 38 matter. Kicked Y-54 Guardian out of the way. Kicked Y-54 Guardian. Carbon-fiber Leg destroyed. Imp. System Shield destroyed. Slammed into Y-54 Guardian. Destabilizing: Core damaged (-17). Slammed into Y-54 Guardian. Acquired Carbon-fiber Leg. Kicked Y-54 Guardian. Fusion Modulator explodes. Map ----- +----------------------------------------------------+ | ???????????????????????# # | | ???????????????????????# # | | ??????????############## # | | ??????????# ] # # | | ???? ?????# # # | | ???? ?????# """"" # # | | ???? ?????# """"" # # | | ???? ?????# """ # # | | ???? ?????# + + | | ???? ?????# # # | | ???# ?????# """""" # # | | ???# #????# """""" # # | | ???# #????# """""" ####### | | ???# #????# """""" #?????? | | ???# #????# #?????? | | ???# #????######+#######?????? | | ???# ########### #???????????? | | ???# #???????????? | | ???# #???????????? | | ???# #???????????? | | ???# ??????? | | ####;######## ????? | | # %! *#?# ???? | | # !% #?# ^ ????? | | # Y #?# ???? | | # @ "" #?# ^ ???? | | # !"""#?# ^ ???? | | # R"#?#######+######???? | | # """#??????????????????? | | # * #??????????????????? | | ###########??????????????????? | | ?????????????????????????????? | | ?????????????????????????????? | | | | | | | | | | | | | | | | | | | | | | | | | | | | | | | | | | | +----------------------------------------------------+ Best States ------------- Heat Dissipation 37 Energy Generation 26 Energy Capacity 595 Matter Stores 300 Matter Capacity 300 Sight Range 18 Terrain Scan Density 210 Armor Coverage 300 Resistance: KI 20 Resistance: TH 20 Resistance: EX 45 Resistance: EM 20 Resistance: I 20 Resistance: S 20 Resistance: P 20 Power Shielding 66 Evasion (%) 55 Launcher Accuracy 20 Recoil Reduction 1 Offensive Hacking 10 Defensive Hacking 12 Item Schematics ----------------- None Robot Schematics ------------------ None Fabricated ------------ Nothing Repaired ---------- Nothing Alien Tech Used ----------------- None Achievements -------------- I Survived The Infestation Universal Adapter Challenges ------------ None Game ------ Seed GravitonLinkedHammer Manual? 0 Play Time 00:36:44 Cumulative 2.6 hours Start 2025.07.31 @ 10:39:34 End 2025.07.31 @ 11:15:50 Sessions 1 Manual Loads 0 Difficulty Adventurer Special Mode None Game No. 3 Rogue 0 Adventurer 3 Explorer 0 Win Type - Total 0 Types 0/0/0/0/0/0/0/0/0/0 Lore% 0 Gallery% 9 Achievement% 7 Wizard Run 0 Options --------- Layout 1 ASCII 0 Keyboard 0 Movement Arrows Keybinds 0 Fullscreen 2 Font 24/Smallcaps Map View 25x17 Zoom Use 94% Tactical HUD 0 Map Filters NONE Filters NONE Steam 1 RUN: 24537c5b-bc0b-416b-aa7b-9dbe8dce62df